[Event "Titled Tuesday Blitz September 28 2021"]
[White "Vovk, Orest"]
[Black "Vogel, Roven"]
[WhiteFideId "14113490"]
[BlackFideId "12908088"]
[WhiteElo "2400"]
[BlackElo "2764"]
[Result "0-1"]
[Round "03"]
[TimeControl "180+1"]
[Date "2021.09.28"]
[WhiteClock "0:00:03"]
[BlackClock "0:00:11"]

1. h3 {[%clk 0:02:59]}  e5 {[%clk 0:02:55]} 2. g4 {[%clk 0:02:56]}  d5 {[%clk 0:02:54]} 3. Bg2 {[%clk 0:02:56]}  h5 {[%clk 0:02:51]} 4. d4 {[%clk 0:02:55]}  e4 {[%clk 0:02:48]} 5. c4 {[%clk 0:02:54]}  c6 {[%clk 0:02:48]} 6. Nc3 {[%clk 0:02:53]}  hxg4 {[%clk 0:02:45]} 7. cxd5 {[%clk 0:02:52]}  cxd5 {[%clk 0:02:44]} 8. Qb3 {[%clk 0:02:48]}  Ne7 {[%clk 0:02:26]} 9. hxg4 {[%clk 0:02:40]}  Rxh1 {[%clk 0:02:25]} 10. Bxh1 {[%clk 0:02:41]}  Nbc6 {[%clk 0:02:25]} 11. Bf4 {[%clk 0:02:20]}  a6 {[%clk 0:01:55]} 12. e3 {[%clk 0:02:08]}  Na5 {[%clk 0:01:47]} 13. Qd1 {[%clk 0:01:48]}  Ng6 {[%clk 0:01:46]} 14. Bg3 {[%clk 0:01:41]}  Be6 {[%clk 0:01:42]} 15. f3 {[%clk 0:01:34]}  Bd6 {[%clk 0:01:36]} 16. Bxd6 {[%clk 0:01:19]}  Qxd6 {[%clk 0:01:37]} 17. f4 {[%clk 0:01:17]}  Nc4 {[%clk 0:01:34]} 18. Qe2 {[%clk 0:01:07]}  Bxg4 {[%clk 0:00:48]} 19. Qxg4 {[%clk 0:01:04]}  Nxe3 {[%clk 0:00:48]} 20. Qe2 {[%clk 0:00:26]}  Qxf4 {[%clk 0:00:47]} 21. Qf2 {[%clk 0:00:10]}  Qh6 {[%clk 0:00:47]} 22. Bg2 {[%clk 0:00:06]}  Nf4 {[%clk 0:00:46]} 23. Bf1 {[%clk 0:00:05]}  Rc8 {[%clk 0:00:28]} 24. Qxe3 {[%clk 0:00:03]}  Ng2+ {[%clk 0:00:28]} 25. Bxg2 {[%clk 0:00:04]}  Qxe3+ {[%clk 0:00:28]} 26. Nge2 {[%clk 0:00:05]}  Rd8 {[%clk 0:00:22]} 27. Nd1 {[%clk 0:00:04]}  Qg5 {[%clk 0:00:22]} 28. Kf2 {[%clk 0:00:04]}  f5 {[%clk 0:00:22]} 29. Ndc3 {[%clk 0:00:03]}  f4 {[%clk 0:00:22]} 30. Rh1 {[%clk 0:00:03]}  f3 {[%clk 0:00:20]} 31. Bxf3 {[%clk 0:00:04]}  exf3 {[%clk 0:00:20]} 32. Kxf3 {[%clk 0:00:04]}  Kd7 {[%clk 0:00:20]} 33. Kf2 {[%clk 0:00:02]}  Qd2 {[%clk 0:00:20]} 34. Rh3 {[%clk 0:00:01]}  Rf8+ {[%clk 0:00:20]} 35. Rf3 {[%clk 0:00:02]}  Rxf3+ {[%clk 0:00:20]} 36. Kxf3 {[%clk 0:00:03]}  Qxb2 {[%clk 0:00:20]} 37. Nxd5 {[%clk 0:00:03]}  Qxa2 {[%clk 0:00:21]} 38. Nef4 {[%clk 0:00:02]}  g5 {[%clk 0:00:18]} 39. Nc3 {[%clk 0:00:01]}  Qb3 {[%clk 0:00:16]} 40. Ne2 {[%clk 0:00:02]}  a5 {[%clk 0:00:16]} 41. Ke4 {[%clk 0:00:03]}  a4 {[%clk 0:00:16]} 42. Nd5 {[%clk 0:00:03]}  a3 {[%clk 0:00:15]} 43. Nec3 {[%clk 0:00:04]}  a2 {[%clk 0:00:14]} 44. Nf6+ {[%clk 0:00:04]}  Kc8 {[%clk 0:00:14]} 45. Ncd5 {[%clk 0:00:04]}  a1=Q {[%clk 0:00:13]} 46. Ne7+ {[%clk 0:00:05]}  Kb8 {[%clk 0:00:13]} 47. Nd7+ {[%clk 0:00:05]}  Kc7 {[%clk 0:00:13]} 48. Nc5 {[%clk 0:00:04]}  Qe1+ {[%clk 0:00:12]} 49. Kf5 {[%clk 0:00:05]}  Qf3+ {[%clk 0:00:12]} 50. Kg6 {[%clk 0:00:03]}  Qxe7 {[%clk 0:00:11]} 0-1


[Site "https://www.chess.com"]

[Event "Titled Tuesday Blitz September 28 2021"]
[White "Wadsworth, Matthew J"]
[Black "Fier, Alexandr"]
[WhiteFideId "415804"]
[BlackFideId "2107139"]
[WhiteElo "2559"]
[BlackElo "2802"]
[Result "1/2-1/2"]
[Round "03"]
[TimeControl "180+1"]
[Date "2021.09.28"]
[WhiteClock "0:00:05"]
[BlackClock "0:01:02"]

1. c4 {[%clk 0:03:00]}  Nf6 {[%clk 0:02:58]} 2. g3 {[%clk 0:03:00]}  c5 {[%clk 0:02:58]} 3. Bg2 {[%clk 0:03:01]}  g6 {[%clk 0:02:58]} 4. Nc3 {[%clk 0:03:00]}  Bg7 {[%clk 0:02:57]} 5. Nf3 {[%clk 0:03:00]}  Nc6 {[%clk 0:02:57]} 6. d4 {[%clk 0:03:01]}  cxd4 {[%clk 0:02:57]} 7. Nxd4 {[%clk 0:03:01]}  O-O {[%clk 0:02:57]} 8. O-O {[%clk 0:03:01]}  Qa5 {[%clk 0:02:58]} 9. Nb3 {[%clk 0:02:51]}  Qh5 {[%clk 0:02:53]} 10. c5 {[%clk 0:02:49]}  a5 {[%clk 0:02:53]} 11. e4 {[%clk 0:02:46]}  a4 {[%clk 0:02:48]} 12. Qxh5 {[%clk 0:02:46]}  Nxh5 {[%clk 0:02:48]} 13. Nd2 {[%clk 0:02:45]}  a3 {[%clk 0:02:48]} 14. Nc4 {[%clk 0:02:41]}  d6 {[%clk 0:02:27]} 15. cxd6 {[%clk 0:01:59]}  exd6 {[%clk 0:02:28]} 16. Nb5 {[%clk 0:01:49]}  Be6 {[%clk 0:02:25]} 17. Ncxa3 {[%clk 0:01:40]}  Nb4 {[%clk 0:02:25]} 18. Bd2 {[%clk 0:01:26]}  Nxa2 {[%clk 0:02:20]} 19. Rab1 {[%clk 0:01:15]}  Rfd8 {[%clk 0:02:00]} 20. Nc7 {[%clk 0:00:59]}  Ra4 {[%clk 0:01:57]} 21. Nxe6 {[%clk 0:00:56]}  fxe6 {[%clk 0:01:57]} 22. Rfd1 {[%clk 0:00:44]}  Nf6 {[%clk 0:01:56]} 23. Bg5 {[%clk 0:00:35]}  h6 {[%clk 0:01:55]} 24. Bf4 {[%clk 0:00:32]}  Nxe4 {[%clk 0:01:53]} 25. Bxe4 {[%clk 0:00:22]}  Rxe4 {[%clk 0:01:54]} 26. Rxd6 {[%clk 0:00:22]}  Rxd6 {[%clk 0:01:55]} 27. Bxd6 {[%clk 0:00:22]}  Re2 {[%clk 0:01:55]} 28. Nc4 {[%clk 0:00:16]}  b5 {[%clk 0:01:54]} 29. Ra1 {[%clk 0:00:15]}  bxc4 {[%clk 0:01:50]} 30. Rxa2 {[%clk 0:00:15]}  Bxb2 {[%clk 0:01:50]} 31. Ra8+ {[%clk 0:00:14]}  Kf7 {[%clk 0:01:50]} 32. Rf8+ {[%clk 0:00:13]}  Kg7 {[%clk 0:01:50]} 33. Rc8 {[%clk 0:00:12]}  c3 {[%clk 0:01:51]} 34. Kf1 {[%clk 0:00:12]}  Rc2 {[%clk 0:01:51]} 35. Be5+ {[%clk 0:00:10]}  Kf7 {[%clk 0:01:51]} 36. Rc7+ {[%clk 0:00:10]}  Ke8 {[%clk 0:01:52]} 37. Kg2 {[%clk 0:00:09]}  Kd8 {[%clk 0:01:51]} 38. Rc6 {[%clk 0:00:07]}  Kd7 {[%clk 0:01:50]} 39. Rc7+ {[%clk 0:00:07]}  Kd8 {[%clk 0:01:49]} 40. Rc6 {[%clk 0:00:08]}  g5 {[%clk 0:01:39]} 41. h4 {[%clk 0:00:06]}  g4 {[%clk 0:01:38]} 42. h5 {[%clk 0:00:05]}  Rc1 {[%clk 0:01:34]} 43. Bf4 {[%clk 0:00:04]}  Re1 {[%clk 0:01:32]} 44. Bxh6 {[%clk 0:00:04]}  Kd7 {[%clk 0:01:32]} 45. Rc4 {[%clk 0:00:03]}  Re5 {[%clk 0:01:31]} 46. Bg7 {[%clk 0:00:02]}  Rxh5 {[%clk 0:01:14]} 47. Bxc3 {[%clk 0:00:02]}  Ba3 {[%clk 0:01:15]} 48. Rxg4 {[%clk 0:00:02]}  Bd6 {[%clk 0:01:16]} 49. Rg7+ {[%clk 0:00:02]}  Kc6 {[%clk 0:01:16]} 50. Rg6 {[%clk 0:00:02]}  Kd5 {[%clk 0:01:16]} 51. Bd2 {[%clk 0:00:03]}  e5 {[%clk 0:01:16]} 52. Be3 {[%clk 0:00:03]}  Rh7 {[%clk 0:01:17]} 53. Rg5 {[%clk 0:00:04]}  Ke4 {[%clk 0:01:17]} 54. Rg4+ {[%clk 0:00:04]}  Kf5 {[%clk 0:01:17]} 55. Rg5+ {[%clk 0:00:04]}  Kf6 {[%clk 0:01:17]} 56. Rg4 {[%clk 0:00:05]}  Rb7 {[%clk 0:01:17]} 57. Ra4 {[%clk 0:00:05]}  Rb2 {[%clk 0:01:16]} 58. Kf3 {[%clk 0:00:05]}  Ke6 {[%clk 0:01:16]} 59. Ra6 {[%clk 0:00:05]}  Kd5 {[%clk 0:01:16]} 60. g4 {[%clk 0:00:05]}  e4+ {[%clk 0:01:14]} 61. Kg2 {[%clk 0:00:05]}  Rb7 {[%clk 0:01:14]} 62. Ra5+ {[%clk 0:00:05]}  Ke6 {[%clk 0:01:14]} 63. g5 {[%clk 0:00:05]}  Be5 {[%clk 0:01:13]} 64. Kh3 {[%clk 0:00:05]}  Rh7+ {[%clk 0:01:12]} 65. Kg4 {[%clk 0:00:05]}  Rh1 {[%clk 0:01:13]} 66. Ra6+ {[%clk 0:00:05]}  Kd5 {[%clk 0:01:12]} 67. Kf5 {[%clk 0:00:06]}  Bc3 {[%clk 0:01:11]} 68. Ra8 {[%clk 0:00:05]}  Kd6 {[%clk 0:01:11]} 69. Rd8+ {[%clk 0:00:05]}  Ke7 {[%clk 0:01:12]} 70. Rc8 {[%clk 0:00:06]}  Bb2 {[%clk 0:01:11]} 71. g6 {[%clk 0:00:06]}  Rh5+ {[%clk 0:01:10]} 72. Bg5+ {[%clk 0:00:06]}  Kd7 {[%clk 0:01:08]} 73. Rb8 {[%clk 0:00:05]}  Bc1 {[%clk 0:01:08]} 74. g7 {[%clk 0:00:03]}  Rxg5+ {[%clk 0:01:08]} 75. Kf6 {[%clk 0:00:04]}  e3 {[%clk 0:01:08]} 76. fxe3 {[%clk 0:00:03]}  Bxe3 {[%clk 0:01:07]} 77. g8=Q {[%clk 0:00:03]}  Rxg8 {[%clk 0:01:07]} 78. Rxg8 {[%clk 0:00:04]}  Bd4+ {[%clk 0:01:07]} 79. Kf5 {[%clk 0:00:04]}  Kd6 {[%clk 0:01:08]} 80. Ke4 {[%clk 0:00:05]}  Bf6 {[%clk 0:01:08]} 81. Rg6 {[%clk 0:00:05]}  Ke6 {[%clk 0:01:08]} 82. Kf4 {[%clk 0:00:05]}  Ke7 {[%clk 0:01:06]} 83. Kf5 {[%clk 0:00:06]}  Bc3 {[%clk 0:01:06]} 84. Re6+ {[%clk 0:00:06]}  Kd7 {[%clk 0:01:07]} 85. Rh6 {[%clk 0:00:07]}  Bb2 {[%clk 0:01:06]} 86. Ke4 {[%clk 0:00:07]}  Ke7 {[%clk 0:01:06]} 87. Kd5 {[%clk 0:00:07]}  Kf7 {[%clk 0:01:07]} 88. Rb6 {[%clk 0:00:06]}  Bc3 {[%clk 0:01:07]} 89. Rc6 {[%clk 0:00:06]}  Bb2 {[%clk 0:01:06]} 90. Ke4 {[%clk 0:00:06]}  Ke7 {[%clk 0:01:06]} 91. Rc2 {[%clk 0:00:05]}  Ba1 {[%clk 0:01:04]} 92. Kd5 {[%clk 0:00:06]}  Kf6 {[%clk 0:01:02]} 93. Rf2+ {[%clk 0:00:06]}  Ke7 {[%clk 0:01:03]} 94. Rf5 {[%clk 0:00:05]}  Bc3 {[%clk 0:01:02]} 95. Rf2 {[%clk 0:00:05]}  Ba1 {[%clk 0:01:02]} 96. Re2+ {[%clk 0:00:04]}  Kf6 {[%clk 0:01:02]} 97. Re6+ {[%clk 0:00:05]}  Kf5 {[%clk 0:01:02]} 1/2-1/2


[Site "https://www.chess.com"]

[Event "Titled Tuesday Blitz September 28 2021"]
[White "Wagner, Dennis"]
[Black "Rogac, Srdjan"]
[WhiteFideId "24650684"]
[BlackFideId "920576"]
[WhiteElo "2355"]
[BlackElo "2389"]
[Result "1/2-1/2"]
[Round "03"]
[TimeControl "180+1"]
[Date "2021.09.28"]
[WhiteClock "0:00:03"]
[BlackClock "0:01:03"]

1. e4 {[%clk 0:03:00]}  c6 {[%clk 0:02:59]} 2. d4 {[%clk 0:02:59]}  d5 {[%clk 0:03:00]} 3. exd5 {[%clk 0:03:00]}  cxd5 {[%clk 0:03:00]} 4. Bd3 {[%clk 0:03:00]}  Nc6 {[%clk 0:02:59]} 5. c3 {[%clk 0:03:01]}  Nf6 {[%clk 0:02:59]} 6. Bf4 {[%clk 0:03:00]}  Bg4 {[%clk 0:02:58]} 7. Qb3 {[%clk 0:03:00]}  Qc8 {[%clk 0:02:58]} 8. Nd2 {[%clk 0:03:00]}  e6 {[%clk 0:02:57]} 9. Ngf3 {[%clk 0:03:01]}  Bh5 {[%clk 0:02:57]} 10. a4 {[%clk 0:02:53]}  Bg6 {[%clk 0:02:57]} 11. Bxg6 {[%clk 0:02:52]}  hxg6 {[%clk 0:02:58]} 12. h4 {[%clk 0:02:50]}  Be7 {[%clk 0:02:57]} 13. g3 {[%clk 0:02:49]}  a6 {[%clk 0:02:54]} 14. Kf1 {[%clk 0:02:47]}  Na5 {[%clk 0:02:51]} 15. Qc2 {[%clk 0:02:43]}  Nd7 {[%clk 0:02:45]} 16. Kg2 {[%clk 0:02:38]}  Nc4 {[%clk 0:02:40]} 17. a5 {[%clk 0:02:32]}  Nxd2 {[%clk 0:02:38]} 18. Qxd2 {[%clk 0:02:29]}  Qc6 {[%clk 0:02:32]} 19. Qe3 {[%clk 0:02:18]}  Bf6 {[%clk 0:02:30]} 20. Rhc1 {[%clk 0:01:56]}  Rc8 {[%clk 0:02:28]} 21. b3 {[%clk 0:01:36]}  O-O {[%clk 0:02:27]} 22. Rc2 {[%clk 0:01:26]}  Rfe8 {[%clk 0:02:26]} 23. Rh1 {[%clk 0:01:20]}  Qb5 {[%clk 0:02:23]} 24. b4 {[%clk 0:01:12]}  Qa4 {[%clk 0:02:21]} 25. Rcc1 {[%clk 0:01:07]}  b6 {[%clk 0:02:17]} 26. h5 {[%clk 0:01:04]}  bxa5 {[%clk 0:02:14]} 27. hxg6 {[%clk 0:01:04]}  fxg6 {[%clk 0:02:12]} 28. Qd3 {[%clk 0:00:54]}  axb4 {[%clk 0:02:04]} 29. Qxg6 {[%clk 0:00:48]}  Nf8 {[%clk 0:02:04]} 30. Qh5 {[%clk 0:00:45]}  Rxc3 {[%clk 0:02:04]} 31. Ra1 {[%clk 0:00:19]}  Qd7 {[%clk 0:01:55]} 32. Rxa6 {[%clk 0:00:17]}  Rxf3 {[%clk 0:01:51]} 33. Kxf3 {[%clk 0:00:09]}  Bxd4 {[%clk 0:01:50]} 34. Bd6 {[%clk 0:00:06]}  Qb5 {[%clk 0:01:34]} 35. Qh8+ {[%clk 0:00:05]}  Kf7 {[%clk 0:01:34]} 36. Rha1 {[%clk 0:00:03]}  Qd3+ {[%clk 0:01:31]} 37. Kg2 {[%clk 0:00:03]}  Qe4+ {[%clk 0:01:31]} 38. Kg1 {[%clk 0:00:04]}  Bxa1 {[%clk 0:01:21]} 39. Ra7+ {[%clk 0:00:04]}  Kg6 {[%clk 0:01:19]} 40. Rxa1 {[%clk 0:00:03]}  b3 {[%clk 0:01:12]} 41. Bxf8 {[%clk 0:00:03]}  Rxf8 {[%clk 0:01:08]} 42. Qxf8 {[%clk 0:00:03]}  b2 {[%clk 0:01:08]} 43. Qe8+ {[%clk 0:00:03]}  Kh6 {[%clk 0:01:04]} 44. Qh8+ {[%clk 0:00:02]}  Kg6 {[%clk 0:01:03]} 45. Qe8+ {[%clk 0:00:02]}  Kh6 {[%clk 0:01:03]} 46. Qh8+ {[%clk 0:00:02]}  Kg6 {[%clk 0:01:03]} 47. Qe8+ {[%clk 0:00:03]} 1/2-1/2


[Site "https://www.chess.com"]

[Event "Titled Tuesday Blitz September 28 2021"]
[White "Warmerdam, Max"]
[Black "Tologon tegin, Semetei"]
[WhiteFideId "1048104"]
[BlackFideId "13800574"]
[WhiteElo "2798"]
[BlackElo "2549"]
[Result "0-1"]
[Round "03"]
[TimeControl "180+1"]
[Date "2021.09.28"]
[WhiteClock "0:00:14"]
[BlackClock "0:00:07"]

1. e4 {[%clk 0:03:00]}  c5 {[%clk 0:02:56]} 2. Nf3 {[%clk 0:03:01]}  d6 {[%clk 0:02:56]} 3. Bb5+ {[%clk 0:03:01]}  Nd7 {[%clk 0:02:56]} 4. d4 {[%clk 0:03:01]}  cxd4 {[%clk 0:02:55]} 5. Qxd4 {[%clk 0:03:02]}  a6 {[%clk 0:02:51]} 6. Bxd7+ {[%clk 0:03:03]}  Bxd7 {[%clk 0:02:51]} 7. Nc3 {[%clk 0:03:04]}  e5 {[%clk 0:02:50]} 8. Qd3 {[%clk 0:03:04]}  h6 {[%clk 0:02:49]} 9. Nd2 {[%clk 0:03:04]}  Rc8 {[%clk 0:02:47]} 10. Nc4 {[%clk 0:03:05]}  Be6 {[%clk 0:02:39]} 11. Ne3 {[%clk 0:03:05]}  Nf6 {[%clk 0:02:37]} 12. O-O {[%clk 0:03:05]}  Be7 {[%clk 0:02:37]} 13. a4 {[%clk 0:03:06]}  O-O {[%clk 0:02:35]} 14. Rd1 {[%clk 0:03:06]}  Qc7 {[%clk 0:02:34]} 15. Qe2 {[%clk 0:03:07]}  Rfd8 {[%clk 0:02:30]} 16. a5 {[%clk 0:03:07]}  Qc6 {[%clk 0:02:23]} 17. Qf3 {[%clk 0:03:07]}  Nd7 {[%clk 0:02:10]} 18. Ncd5 {[%clk 0:03:04]}  Bg5 {[%clk 0:02:08]} 19. h4 {[%clk 0:03:00]}  Bxh4 {[%clk 0:02:04]} 20. c3 {[%clk 0:02:54]}  Re8 {[%clk 0:01:58]} 21. b4 {[%clk 0:02:48]}  Bg5 {[%clk 0:01:57]} 22. Bb2 {[%clk 0:02:43]}  Bxe3 {[%clk 0:01:53]} 23. Qxe3 {[%clk 0:02:42]}  Bxd5 {[%clk 0:01:51]} 24. exd5 {[%clk 0:02:43]}  Qc4 {[%clk 0:01:50]} 25. Rd2 {[%clk 0:02:41]}  f5 {[%clk 0:01:49]} 26. Rad1 {[%clk 0:02:40]}  f4 {[%clk 0:01:49]} 27. Qh3 {[%clk 0:02:38]}  Nf6 {[%clk 0:01:47]} 28. Rd3 {[%clk 0:02:34]}  Rc7 {[%clk 0:01:46]} 29. Ba3 {[%clk 0:02:28]}  Rd7 {[%clk 0:01:32]} 30. Qf5 {[%clk 0:02:23]}  e4 {[%clk 0:01:25]} 31. Qxf4 {[%clk 0:02:18]}  Qa2 {[%clk 0:01:23]} 32. Rg3 {[%clk 0:02:12]}  Nh5 {[%clk 0:01:14]} 33. Qg4 {[%clk 0:01:58]}  Rf7 {[%clk 0:01:09]} 34. Qxh5 {[%clk 0:01:53]}  Qxf2+ {[%clk 0:00:44]} 35. Kh2 {[%clk 0:01:53]}  Re5 {[%clk 0:00:43]} 36. Qh4 {[%clk 0:00:48]}  Qe2 {[%clk 0:00:35]} 37. Re1 {[%clk 0:00:45]}  Qxe1 {[%clk 0:00:17]} 38. Rxg7+ {[%clk 0:00:45]}  Rxg7 {[%clk 0:00:18]} 39. Qxe1 {[%clk 0:00:46]}  e3 {[%clk 0:00:15]} 40. Bc1 {[%clk 0:00:46]}  e2 {[%clk 0:00:15]} 41. Bf4 {[%clk 0:00:46]}  Re4 {[%clk 0:00:13]} 42. g3 {[%clk 0:00:47]}  Rg6 {[%clk 0:00:08]} 43. c4 {[%clk 0:00:40]}  h5 {[%clk 0:00:08]} 44. c5 {[%clk 0:00:38]}  dxc5 {[%clk 0:00:08]} 45. bxc5 {[%clk 0:00:39]}  h4 {[%clk 0:00:09]} 46. d6 {[%clk 0:00:40]}  hxg3+ {[%clk 0:00:09]} 47. Bxg3 {[%clk 0:00:41]}  Rg7 {[%clk 0:00:05]} 48. Kg2 {[%clk 0:00:28]}  Re3 {[%clk 0:00:04]} 49. Kf2 {[%clk 0:00:17]}  Rgxg3 {[%clk 0:00:04]} 50. d7 {[%clk 0:00:17]}  Rgf3+ {[%clk 0:00:04]} 51. Kg2 {[%clk 0:00:18]}  Rf8 {[%clk 0:00:03]} 52. Kh2 {[%clk 0:00:12]}  Re7 {[%clk 0:00:02]} 53. Qg3+ {[%clk 0:00:11]}  Rg7 {[%clk 0:00:02]} 54. Qb3+ {[%clk 0:00:11]}  Kh8 {[%clk 0:00:02]} 55. Qc3 {[%clk 0:00:09]}  Kg8 {[%clk 0:00:02]} 56. Qc4+ {[%clk 0:00:09]}  Kh8 {[%clk 0:00:02]} 57. Qxe2 {[%clk 0:00:10]}  Rh7+ {[%clk 0:00:02]} 58. Kg3 {[%clk 0:00:10]}  Rg8+ {[%clk 0:00:03]} 59. Kf4 {[%clk 0:00:10]}  Rf7+ {[%clk 0:00:03]} 60. Ke5 {[%clk 0:00:10]}  Re7+ {[%clk 0:00:04]} 61. Kd6 {[%clk 0:00:11]}  Rxe2 {[%clk 0:00:04]} 62. Kc7 {[%clk 0:00:12]}  Rd2 {[%clk 0:00:05]} 63. Kxb7 {[%clk 0:00:12]}  Rxd7+ {[%clk 0:00:04]} 64. Kxa6 {[%clk 0:00:13]}  Rc7 {[%clk 0:00:04]} 65. Kb6 {[%clk 0:00:13]}  Rgc8 {[%clk 0:00:05]} 66. a6 {[%clk 0:00:14]}  Rc6+ {[%clk 0:00:05]} 67. Kb7 {[%clk 0:00:14]}  Rxc5 {[%clk 0:00:06]} 68. a7 {[%clk 0:00:14]}  R8c7+ {[%clk 0:00:06]} 69. Kb6 {[%clk 0:00:14]}  Rxa7 {[%clk 0:00:07]} 0-1


[Site "https://www.chess.com"]

[Event "Titled Tuesday Blitz September 28 2021"]
[White "Wieczorek, Zbigniew"]
[Black "Stoyanov, Tsvetan"]
[WhiteFideId "1102001"]
[BlackFideId "2917173"]
[WhiteElo "2186"]
[BlackElo "2191"]
[Result "1/2-1/2"]
[Round "03"]
[TimeControl "180+1"]
[Date "2021.09.28"]
[WhiteClock "0:00:07"]
[BlackClock "0:00:09"]

1. Nf3 {[%clk 0:03:00]}  c5 {[%clk 0:02:59]} 2. e4 {[%clk 0:02:59]}  d6 {[%clk 0:02:59]} 3. Bb5+ {[%clk 0:02:58]}  Nd7 {[%clk 0:02:58]} 4. c4 {[%clk 0:02:58]}  Nf6 {[%clk 0:02:56]} 5. Nc3 {[%clk 0:02:58]}  g6 {[%clk 0:02:56]} 6. d4 {[%clk 0:02:58]}  cxd4 {[%clk 0:02:56]} 7. Nxd4 {[%clk 0:02:59]}  Bg7 {[%clk 0:02:56]} 8. O-O {[%clk 0:02:58]}  O-O {[%clk 0:02:56]} 9. Bxd7 {[%clk 0:02:57]}  Bxd7 {[%clk 0:02:55]} 10. b3 {[%clk 0:02:55]}  Rc8 {[%clk 0:02:55]} 11. Bb2 {[%clk 0:02:55]}  a6 {[%clk 0:02:55]} 12. Rc1 {[%clk 0:02:54]}  b5 {[%clk 0:02:40]} 13. cxb5 {[%clk 0:02:50]}  axb5 {[%clk 0:02:41]} 14. Qe2 {[%clk 0:02:04]}  b4 {[%clk 0:02:37]} 15. Nd5 {[%clk 0:02:03]}  Nxd5 {[%clk 0:02:37]} 16. exd5 {[%clk 0:02:03]}  Rxc1 {[%clk 0:02:31]} 17. Rxc1 {[%clk 0:02:02]}  Qa5 {[%clk 0:02:18]} 18. Nc6 {[%clk 0:01:30]}  Bxc6 {[%clk 0:02:12]} 19. Bxg7 {[%clk 0:01:30]}  Kxg7 {[%clk 0:02:12]} 20. dxc6 {[%clk 0:01:28]}  Rc8 {[%clk 0:02:04]} 21. h4 {[%clk 0:00:43]}  Rc7 {[%clk 0:02:01]} 22. Qd2 {[%clk 0:00:35]}  Qb5 {[%clk 0:01:56]} 23. Rc4 {[%clk 0:00:13]}  Rxc6 {[%clk 0:01:51]} 24. Rxc6 {[%clk 0:00:13]}  Qxc6 {[%clk 0:01:51]} 25. Qxb4 {[%clk 0:00:13]}  Qc1+ {[%clk 0:01:41]} 26. Kh2 {[%clk 0:00:13]}  Qb2 {[%clk 0:01:42]} 27. a4 {[%clk 0:00:06]}  Qxf2 {[%clk 0:01:41]} 28. a5 {[%clk 0:00:06]}  d5 {[%clk 0:01:06]} 29. Qxe7 {[%clk 0:00:03]}  Qf4+ {[%clk 0:01:03]} 30. Kh3 {[%clk 0:00:03]}  Qf5+ {[%clk 0:01:02]} 31. Kh2 {[%clk 0:00:03]}  Qf4+ {[%clk 0:00:59]} 32. Kh3 {[%clk 0:00:02]}  Qd4 {[%clk 0:00:55]} 33. a6 {[%clk 0:00:02]}  Qd3+ {[%clk 0:00:55]} 34. g3 {[%clk 0:00:01]}  Qxa6 {[%clk 0:00:47]} 35. Qe5+ {[%clk 0:00:01]}  f6 {[%clk 0:00:45]} 36. Qxd5 {[%clk 0:00:02]}  Qf1+ {[%clk 0:00:45]} 37. Kh2 {[%clk 0:00:02]}  Qf2+ {[%clk 0:00:36]} 38. Kh3 {[%clk 0:00:02]}  Kh6 {[%clk 0:00:24]} 39. Qc4 {[%clk 0:00:02]}  g5 {[%clk 0:00:21]} 40. hxg5+ {[%clk 0:00:02]}  fxg5 {[%clk 0:00:21]} 41. Qe6+ {[%clk 0:00:03]}  Kg7 {[%clk 0:00:21]} 42. Qe7+ {[%clk 0:00:03]}  Kg6 {[%clk 0:00:19]} 43. Qe6+ {[%clk 0:00:04]}  Kg7 {[%clk 0:00:16]} 44. Qc4 {[%clk 0:00:04]}  Qf5+ {[%clk 0:00:13]} 45. g4 {[%clk 0:00:04]}  Qf3+ {[%clk 0:00:12]} 46. Kh2 {[%clk 0:00:05]}  h5 {[%clk 0:00:08]} 47. gxh5 {[%clk 0:00:05]}  Qxh5+ {[%clk 0:00:08]} 48. Kg2 {[%clk 0:00:05]}  Qg6 {[%clk 0:00:07]} 49. b4 {[%clk 0:00:05]}  Qf6 {[%clk 0:00:06]} 50. b5 {[%clk 0:00:05]}  Qb2+ {[%clk 0:00:06]} 51. Kg3 {[%clk 0:00:05]}  Kf6 {[%clk 0:00:07]} 52. Qc6+ {[%clk 0:00:05]}  Kf5 {[%clk 0:00:07]} 53. Qc5+ {[%clk 0:00:05]}  Kf6 {[%clk 0:00:08]} 54. b6 {[%clk 0:00:05]}  Qb3+ {[%clk 0:00:07]} 55. Kg4 {[%clk 0:00:05]}  Qa4+ {[%clk 0:00:07]} 56. Kh3 {[%clk 0:00:05]}  Qh4+ {[%clk 0:00:07]} 57. Kg2 {[%clk 0:00:06]}  Qe4+ {[%clk 0:00:08]} 58. Kg3 {[%clk 0:00:06]}  Qf4+ {[%clk 0:00:08]} 59. Kg2 {[%clk 0:00:06]}  Qe4+ {[%clk 0:00:09]} 60. Kg3 {[%clk 0:00:06]}  Qf4+ {[%clk 0:00:09]} 61. Kg2 {[%clk 0:00:07]}  Qe4+ {[%clk 0:00:09]} 1/2-1/2


[Site "https://www.chess.com"]

[Event "Titled Tuesday Blitz September 28 2021"]
[White "Yakubboev, Nodirbek"]
[Black "Silvestre, Christian"]
[WhiteFideId "14203987"]
[BlackFideId "30956269"]
[WhiteElo "2464"]
[BlackElo "2488"]
[Result "1-0"]
[Round "03"]
[TimeControl "180+1"]
[Date "2021.09.28"]
[WhiteClock "0:00:21"]
[BlackClock "0:00:20"]

1. d4 {[%clk 0:02:39]}  Nf6 {[%clk 0:02:59]} 2. c4 {[%clk 0:02:34]}  e6 {[%clk 0:02:58]} 3. Nf3 {[%clk 0:02:33]}  b6 {[%clk 0:02:58]} 4. g3 {[%clk 0:02:33]}  Bb7 {[%clk 0:02:59]} 5. Bg2 {[%clk 0:02:34]}  c5 {[%clk 0:02:59]} 6. d5 {[%clk 0:02:32]}  d6 {[%clk 0:02:57]} 7. Nc3 {[%clk 0:02:32]}  e5 {[%clk 0:02:58]} 8. O-O {[%clk 0:02:31]}  Be7 {[%clk 0:02:57]} 9. Nh4 {[%clk 0:02:26]}  g6 {[%clk 0:02:51]} 10. e4 {[%clk 0:02:16]}  Nh5 {[%clk 0:02:40]} 11. Nf5 {[%clk 0:02:12]}  Nd7 {[%clk 0:02:29]} 12. Bh6 {[%clk 0:01:55]}  Ndf6 {[%clk 0:02:16]} 13. Nxe7 {[%clk 0:01:48]}  Qxe7 {[%clk 0:02:14]} 14. f4 {[%clk 0:01:49]}  Nd7 {[%clk 0:02:03]} 15. Nb5 {[%clk 0:01:34]}  Kd8 {[%clk 0:01:34]} 16. Bf3 {[%clk 0:01:06]}  a6 {[%clk 0:01:14]} 17. Nc3 {[%clk 0:00:59]}  exf4 {[%clk 0:01:00]} 18. gxf4 {[%clk 0:00:46]}  Rg8 {[%clk 0:00:52]} 19. Kh1 {[%clk 0:00:41]}  Kc7 {[%clk 0:00:51]} 20. Bxh5 {[%clk 0:00:36]}  Qh4 {[%clk 0:00:46]} 21. e5 {[%clk 0:00:26]}  dxe5 {[%clk 0:00:31]} 22. fxe5 {[%clk 0:00:22]}  Nxe5 {[%clk 0:00:20]} 23. Bf4 {[%clk 0:00:21]}  Qxh5 {[%clk 0:00:20]} 24. Qxh5 {[%clk 0:00:20]}  gxh5 {[%clk 0:00:20]} 25. Bxe5+ {[%clk 0:00:21]}  Kd7 {[%clk 0:00:20]} 26. Rxf7+ {[%clk 0:00:21]} 1-0


[Site "https://www.chess.com"]